[Event "FIDE Zonal 4-2 Open 2023"]
[Site "Dimbroko"]
[Date "2023.03.31"]
[Round "9.1"]
[White "Ortega Amarelle, Mariano"]
[Black "James, Tondo"]
[Result "1-0"]
[ECO "E90"]
[WhiteElo "2472"]
[BlackElo "1867"]
[Annotator "TA"]
[PlyCount "89"]
[EventDate "2023.03.25"]
[EventType "swiss"]
[EventCountry "IVO"]
[SourceTitle "playchess.com"]
[Source "ChessBase"]
[SourceQuality "1"]
[TimeControl "40/5400+30:1800+30"]

{[%evp 10,89,37,29,70,67,68,75,73,72,176,190,190,154,293,292,287,295,293,208,317,311,291,291,292,308,282,289,292,272,371,371,375,374,353,336,349,319,317,325,364,367,363,342,353,335,356,357,371,368,353,362,433,423,406,388,506,517,487,475,590,579,711,698,691,687,789,784,754,669,889,783,767,771,777,760,1070,814,827,751,4802,2318]} 1. d4 {[%emt 0:00:35]} Nf6 {[%emt 0:00:04]} 2. c4 {[%emt 0:00:06]} g6 {[%emt 0:00:04]} 3. Nc3 {[%emt 0:00:39]} Bg7 {[%emt 0:00:03]} 4. e4 {[%emt 0:00:05]} d6 {[%emt 0:00:03]} 5. Nf3 {[%emt 0:02:39][%cal Bg1f3,Bf3d4,Bd4c6][%mdl 32]} Bg4 {[%emt 0:00:20]} 6. Be2 {[%emt 0:00:10]} Nc6 {[%emt 0:00:17] E90: King's Indian: Classical: Early deviations and 6 h3.} 7. d5 {[%emt 0:00:54]} Nb8 {[%emt 0:00:27]} 8. O-O {[%emt 0:00:58]} Nbd7 {[%emt 0:01:14] White is better.} 9. Be3 {[%emt 0:00:27] [#]} b6 $146 {[%emt 0:00:02] [#]} (9... O-O $16 {is a better defense.}) ({Predecessor:} 9... O-O 10. Nd4 Bxe2 11. Qxe2 Rc8 12. Rfd1 c5 13. Nf3 Ng4 14. Bd2 Nge5 15. Ng5 Nb6 {½-½ Pihlajasalo,A (2438)-Mertanen,J (2390) FIN-chT 1213 2012 (9.3)}) 10. Nd4 $1 $18 {[%emt 0:02:44]} Bxe2 {[%emt 0:00:32]} 11. Qxe2 {[%emt 0:00:07]} (11. Ncxe2 $6 O-O $14) 11... O-O {[%emt 0:01:00]} (11... Nh5 $16 {was worth a try.} 12. e5 (12. Nc6 Qc8 $16) 12... dxe5) 12. Nc6 {[%emt 0:02:08]} Qe8 {[%emt 0:00:35] [#]} 13. Nb5 $1 {[%emt 0:00:14][%csl LRa7,LRc7]} Rc8 {[%emt 0:00:46]} 14. Nbxa7 {[%emt 0:06:00]} Ra8 {[%emt 0:01:33]} (14... Nb8 {keeps fighting.} 15. Nxc8 Nxc6 16. dxc6 Qxc8) 15. Nb5 {[%emt 0:00:07]} Rc8 {[%emt 0:00:44]} 16. Nca7 {[%emt 0:05:45]} Nxe4 {[%emt 0:05:21]} 17. Nxc8 {[%emt 0:00:19]} Qxc8 {[%emt 0:00:23]} 18. Bd4 {[%emt 0:03:48]} Nef6 {[%emt 0:05:05]} 19. Rfe1 {[%emt 0:04:23]} (19. Qxe7 Re8 20. Bxf6 (20. Na7 $2 Qa8 $19) 20... Bxf6 21. Nxd6 cxd6 22. Qxd6 Bxb2 $15) 19... c5 {[%emt 0:01:13]} 20. dxc6 {[%emt 0:06:47]} Qxc6 {[%emt 0:00:28]} 21. Qxe7 {[%emt 0:00:28]} Qxc4 {[%emt 0:00:32]} 22. Qe2 {[%emt 0:00:13]} ({Stronger than} 22. Nxd6 Qxd4 23. b3 Qb2 $17) 22... Qd5 {[%emt 0:13:29]} 23. Bxf6 {[%emt 0:05:51]} Nxf6 {[%emt 0:01:44]} 24. Red1 {[%emt 0:00:07]} Qg5 {[%emt 0:02:01]} 25. Nxd6 {[%emt 0:00:17][%cal Bb5d6,Bd6e4,Be4g3,Bg3e2][%mdl 32]} ({Much less strong is} 25. Rxd6 Re8 26. Qd3 Bf8 $18) 25... Nh5 {[%emt 0:00:54]} 26. Ne4 {[%emt 0:03:49]} Qe5 {[%emt 0:09:44]} 27. Ng3 {[%emt 0:01:20]} Qxe2 {[%emt 0:14:58]} 28. Nxe2 {[%emt 0:00:10]} Bxb2 {[%emt 0:03:20]} 29. Rab1 {[%emt 0:00:06]} Ba3 {[%emt 0:04:32]} 30. Rxb6 {[%emt 0:01:33]} Re8 {[%emt 0:00:40]} 31. Kf1 {[%emt 0:00:27]} Kg7 {[%emt 0:01:08]} 32. Rd3 {[%emt 0:05:55]} Bc5 {[%emt 0:04:11]} 33. Rb5 {[%emt 0:00:08] White is clearly winning.} Bf8 {[%emt 0:16:25]} 34. a4 {[%emt 0:00:10][%cal Ba2a4,Ba4a5,Ba5a6,Ba6a7][%mdl 32]} Re4 {[%emt 0:01:31]} 35. Rd4 {[%emt 0:01:22]} Re7 {[%emt 0:01:39]} 36. a5 {[%emt 0:00:21]} Ra7 {[%emt 0:00:21]} 37. Ra4 {[%emt 0:00:46]} Bd6 {[%emt 0:01:34]} 38. a6 {[%emt 0:00:14]} Nf6 {[%emt 0:00:16]} 39. Nd4 {[%emt 0:03:03]} Ne8 {[%emt 0:02:35]} 40. Nc6 {[%emt 0:00:20]} Ra8 {[%emt 0:01:03]} 41. a7 {[%emt 0:30:08]} Nc7 {[%emt 0:30:42]} 42. Rb8 {[%emt 0:00:15] Ra5 is the strong threat.} Kf6 {[%emt 0:03:53]} 43. Rxa8 {[%emt 0:00:31]} Nxa8 {[%emt 0:00:03]} 44. Re4 {[%emt 0:00:48] Strongly threatening Re8.} h5 {[%emt 0:00:00]} 45. Re8 {[%emt 0:00:00] Black did not feel at home in the position after the opening.   Weighted Error Value: White=0.07 (flawless) /Black=0.32} 1-0

[Event "FIDE Zonal 4-2 Open 2023"]
[Site "Dimbroko"]
[Date "2023.03.31"]
[Round "9.2"]
[White "Amako Marc Arnold"]
[Black "Abdulraheem Abdulrahman Akinto"]
[Result "1/2-1/2"]
[ECO "A22"]
[WhiteElo "1647"]
[BlackElo "2302"]
[Annotator "TA"]
[PlyCount "209"]
[EventDate "2023.03.25"]
[EventType "swiss"]
[EventCountry "IVO"]
[SourceTitle "playchess.com"]
[Source "ChessBase"]
[SourceQuality "1"]
[TimeControl "40/5400+30:1800+30"]

{[%evp 9,209,22,21,29,18,27,20,17,92,29,26,39,25,26,39,0,53,29,29,33,34,32,47,43,67,-19,-10,-22,-18,-7,0,-26,-20,-42,-47,-66,-12,-14,-11,-59,-29,-82,-45,-55,-54,-98,-62,-68,-66,-68,-68,-56,-53,-55,-64,-63,-39,-80,-79,-86,-91,-98,-111,-95,-79,-139,-82,-147,-85,-311,-312,-311,-311,-312,-312,-279,-214,-400,-400,-400,-400,-400,-316,-316,-70,-70,-70,-115,-70,-70,-69,-69,-69,-251,-69,-69,-16,-16,-16,-16,-16,-27,-16,-45,-12,-68,-68,-68,-68,-68,-68,-68,-68,-68,-68,-68,-68,-68,-68,-68,-68,-68,-68,-68,-68,-68,-45,-45,-45,-45,-45,-45,-34,-34,-27,-27,-27,-27,-27,-27,-27,-27,-27,-27,-27,-27,0,-8,-8,-8,-8,-8,-8,-8,-8,-8,-8,-8,-8,-8,-8,-8,-8,-8,-8,-8,-8,-8,-8,-8,0,0,0,0,0,-8,-8,-8,0,-8,-8,-8,-8,-8,-8,-8,-8,-8,-8,-8,0,0,0,0,0,0,0,0,0,0,0,0]} 1. c4 {[%emt 0:00:12]} Nf6 {[%emt 0:00:33]} 2. Nc3 {[%emt 0:00:08]} e5 {[%emt 0:02:16]} 3. Nf3 {[%emt 0:00:36]} e4 {[%emt 0:02:08]} 4. Ng5 {[%emt 0:00:40]} b5 {[%emt 0:00:38]} 5. Ngxe4 {[%emt 0:03:37]} Nxe4 {[%emt 0:00:28]} 6. Nxe4 {[%emt 0:00:09] A22: English Opening: 1...e5 2 Nc3 Nf6.} bxc4 {[%emt 0:00:11]} 7. d4 {[%emt 0:03:08]} d5 {[%emt 0:02:09]} 8. Nc3 {[%emt 0:00:21]} Be7 {[%emt 0:01:45]} (8... c6 $11 {remains equal.}) 9. g3 {[%emt 0:00:11]} (9. e4 $16) 9... O-O {[%emt 0:00:42]} 10. Bg2 {[%emt 0:00:08]} c6 {[%emt 0:00:24]} 11. O-O {[%emt 0:00:08] [#]} Be6 $146 {[%emt 0:01:18]} ({Predecessor:} 11... Bf5 12. b3 cxb3 13. axb3 a5 14. Na4 Nd7 15. Ba3 Bxa3 16. Rxa3 Qe7 17. Ra2 Rab8 {1-0 Saveliev,A (2390)-Kohler,A (2121) Titled Tuesday intern op 28th Jun Late blitz 2022 (1)}) 12. e4 {[%emt 0:00:30]} Qd7 {[%emt 0:02:20]} (12... Na6 $11) 13. Be3 {[%emt 0:05:59]} Rd8 {[%emt 0:00:39]} 14. b3 {[%emt 0:01:01]} dxe4 {[%emt 0:05:19]} 15. Bxe4 {[%emt 0:01:39]} cxb3 {[%emt 0:03:07]} 16. axb3 {[%emt 0:00:13]} Qb7 {[%emt 0:00:51]} 17. Rb1 {[%emt 0:02:05]} (17. Qh5 $14 g6 18. Qa5) 17... Na6 $11 {[%emt 0:01:57]} 18. Qf3 {[%emt 0:01:36]} Nb4 {[%emt 0:00:47]} 19. Rfc1 {[%emt 0:02:16]} Rac8 {[%emt 0:07:47]} 20. Rd1 {[%emt 0:15:08]} Qd7 {[%emt 0:00:32]} 21. Qh5 {[%emt 0:01:13]} h6 {[%emt 0:04:55]} 22. Qa5 {[%emt 0:06:56]} Qb7 {[%emt 0:07:47]} (22... Rb8 $15) 23. Qh5 {[%emt 0:09:45][%cal Oe3h6]} Bf8 {[%emt 0:01:52]} 24. Na4 {[%emt 0:02:39]} (24. Bf5 $11 {feels stronger.}) 24... Qd7 {[%emt 0:13:27] ...Bg4 is the strong threat.} (24... Nd5 $5 {[%cal Rd5f6]} 25. Qe2 Re8 $15) 25. Qa5 {[%emt 0:01:57]} ({Much weaker is} 25. Nc5 Bg4 26. Qh4 (26. Nxd7 Bxh5 27. Nxf8 Bxd1 $17) 26... Bxc5 $17) (25. Qe2 $11) 25... Bd5 {[%emt 0:02:29]} 26. Bxd5 {[%emt 0:09:48]} Nxd5 {[%emt 0:00:11]} 27. Bd2 {[%emt 0:00:09]} Qh3 {[%emt 0:05:43]} 28. Qa6 $1 {[%emt 0:06:11]} Nf6 {[%emt 0:02:16] aiming for ...Ng4.} 29. Qf1 $1 {[%emt 0:01:02]} Qxf1+ {[%emt 0:00:14]} 30. Kxf1 {[%emt 0:00:31]} Rxd4 {[%emt 0:00:11]} 31. Be3 {[%emt 0:00:21]} Rxd1+ {[%emt 0:00:24]} 32. Rxd1 {[%emt 0:00:09]} a5 {[%emt 0:00:15]} 33. Bc5 {[%emt 0:00:41]} Rb8 {[%emt 0:03:59]} 34. Bxf8 {[%emt 0:01:22]} Kxf8 $17 {[%emt 0:00:11][%mdl 4096] Endgame KRN-KRN} 35. Rd6 {[%emt 0:06:18]} Rxb3 {[%emt 0:12:00]} 36. Rxc6 {[%emt 0:00:15]} Ne4 {[%emt 0:02:02]} 37. Rc8+ {[%emt 0:06:23]} Ke7 {[%emt 0:00:27]} 38. Rc7+ {[%emt 0:00:15] [#]} (38. Ra8 $142) 38... Ke6 {[%emt 0:02:00]} (38... Kd6 $142 $1 {[%cal Rd6c7]} 39. Ra7 Nd2+ 40. Ke1 Nc4 41. Ra6+ Kc7) 39. Nc5+ $2 {[%emt 0:00:43]} (39. Ra7 $17) 39... Nxc5 $19 {[%emt 0:00:09]} 40. Rxc5 {[%emt 0:00:07] KR-KR} a4 {[%emt 0:01:44][%cal Ba5a4,Ba4a3][%mdl 32]} 41. Ra5 {[%emt 0:33:44]} a3 {[%emt 0:30:17]} 42. Ke2 {[%emt 0:00:07]} Kd6 {[%emt 0:00:58]} 43. h4 $2 {[%emt 0:00:41]} (43. f4) 43... Kc6 {[%emt 0:00:38]} 44. Kd2 {[%emt 0:02:16]} Kb6 {[%emt 0:00:35]} 45. Ra8 {[%emt 0:00:49]} Kc5 {[%emt 0:00:22]} 46. Ra7 {[%emt 0:00:44]} Rb2+ $2 {[%emt 0:02:53]} ({Black should try} 46... g5 $19 {Hoping for ...Rf3.} 47. hxg5 hxg5 48. Rxf7 a2) 47. Kc1 $1 $15 {[%emt 0:00:15]} Rxf2 {[%emt 0:00:37]} 48. Rxa3 {[%emt 0:00:14]} Kd5 {[%emt 0:06:15]} 49. Kd1 $1 {[%emt 0:00:29]} Ke4 {[%emt 0:02:45] White must now prevent ...Rf3.} 50. Ke1 $1 {[%emt 0:05:16]} Rf3 {[%emt 0:00:57]} 51. Ra7 {[%emt 0:00:34] [#]} (51. Ra4+ $15 Ke5 52. Rg4) 51... Rf6 $2 {[%emt 0:00:00]} ({Stronger than} 51... Rxg3 52. Rxf7 Rg4 53. h5 $17) (51... g5 $1 $19 {[%cal Rg5g4] And now ...g4 would win.} 52. Re7+ Kd5) 52. Ke2 {[%emt 0:00:00]} Rf5 {[%emt 0:00:00]} (52... Kf5 $15 53. Ra4 h5) 53. Ra4+ $11 {[%emt 0:00:00]} Ke5 {[%emt 0:00:00]} 54. Ra5+ {[%emt 0:00:00]} Ke6 {[%emt 0:00:00]} 55. Ra6+ {[%emt 0:00:00]} Kd7 {[%emt 0:00:00]} 56. Ke3 {[%emt 0:00:00]} h5 {[%emt 0:00:00]} 57. Ra4 {[%emt 0:00:00]} ({Better is} 57. Ra7+ $11 Kc6 58. Ra4) 57... g6 $15 {[%emt 0:00:00]} 58. Ra6 {[%emt 0:00:00]} Ke7 {[%emt 0:00:00]} 59. Ke4 {[%emt 0:00:00]} Rf1 {[%emt 0:00:00]} 60. Ke3 {[%emt 0:00:00]} Kf8 {[%emt 0:00:00]} 61. Ke2 {[%emt 0:00:00]} Rf5 {[%emt 0:00:00]} 62. Ke3 {[%emt 0:00:00]} Kg7 {[%emt 0:00:00]} 63. Ke4 {[%emt 0:00:00]} Rf1 {[%emt 0:00:00]} 64. Ra7 {[%emt 0:00:00]} Rf6 {[%emt 0:00:00]} 65. Ke3 {[%emt 0:00:00]} Kh6 {[%emt 0:00:00]} 66. Ke4 {[%emt 0:00:00]} Re6+ {[%emt 0:00:00]} 67. Kf3 {[%emt 0:00:00]} f6 {[%emt 0:00:00]} 68. Rb7 {[%emt 0:00:00]} Ra6 {[%emt 0:00:00]} 69. Rc7 {[%emt 0:00:00]} Ra3+ {[%emt 0:00:00]} 70. Kf2 {[%emt 0:00:00]} g5 {[%emt 0:00:00]} 71. hxg5+ {[%emt 0:00:00]} Kxg5 {[%emt 0:00:00]} 72. Rg7+ {[%emt 0:00:00]} Kf5 {[%emt 0:00:00]} 73. Rh7 $1 {[%emt 0:00:00]} Kg6 {[%emt 0:00:00]} 74. Rh8 {[%emt 0:00:00]} Rb3 {[%emt 0:00:00]} 75. Kg2 {[%emt 0:00:00]} Rc3 {[%emt 0:00:00]} 76. Kf2 {[%emt 0:00:00]} Rc7 {[%emt 0:00:00]} 77. Kf3 {[%emt 0:00:00]} Rh7 {[%emt 0:00:00]} 78. Ra8 {[%emt 0:00:00] The position is equal.} h4 {[%emt 0:00:00]} 79. gxh4 {[%emt 0:00:00]} Rxh4 {[%emt 0:00:00]} 80. Ra6 {[%emt 0:00:00]} Kg5 {[%emt 0:00:13]} 81. Ra8 {[%emt 0:00:00]} Rh3+ {[%emt 0:00:21]} 82. Kg2 {[%emt 0:00:00]} Rb3 {[%emt 0:00:11]} 83. Ra4 {[%emt 0:00:00]} f5 {[%emt 0:00:57]} 84. Kf2 {[%emt 0:00:00]} Rc3 {[%emt 0:00:13]} 85. Rb4 $1 {[%emt 0:00:00]} Rh3 {[%emt 0:00:32]} 86. Kg2 {[%emt 0:00:00]} Re3 {[%emt 0:00:53]} 87. Kf2 {[%emt 0:00:00]} Ra3 {[%emt 0:00:43]} 88. Rc4 {[%emt 0:00:00]} Kf6 {[%emt 0:01:06]} 89. Rb4 {[%emt 0:00:00]} Ke5 {[%emt 0:00:07]} 90. Rb5+ {[%emt 0:00:00]} Kf4 {[%emt 0:01:24]} 91. Rb4+ {[%emt 0:00:00]} Kg5 {[%emt 0:00:16]} 92. Rc4 {[%emt 0:00:00]} Ra2+ {[%emt 0:00:20]} 93. Kf3 {[%emt 0:00:00]} Ra3+ {[%emt 0:01:59]} 94. Kf2 {[%emt 0:00:00]} Rh3 {[%emt 0:00:35]} 95. Kg2 {[%emt 0:00:09]} Rh6 {[%emt 0:01:49]} 96. Kf3 {[%emt 0:00:27]} Rh1 {[%emt 0:01:33]} 97. Kg2 {[%emt 0:00:50]} Re1 {[%emt 0:00:21]} 98. Kf3 {[%emt 0:00:46]} Rf1+ {[%emt 0:00:10]} 99. Kg3 {[%emt 0:00:49]} f4+ {[%emt 0:01:28]} 100. Kg2 {[%emt 0:00:06]} Ra1 {[%emt 0:01:04]} 101. Rc8 {[%emt 0:00:10]} Ra2+ {[%emt 0:00:23]} 102. Kf3 {[%emt 0:00:12]} Ra3+ {[%emt 0:00:08]} 103. Kf2 {[%emt 0:00:07]} Kf6 {[%emt 0:02:53]} 104. Rf8+ {[%emt 0:00:20]} Ke5 {[%emt 0:00:08]} 105. Re8+ {[%emt 0:00:07] And White is the lucky defender.   Weighted Error Value: White=0.31/Black=0.27 (precise)} 1/2-1/2

[Event "FIDE Zonal 4-2 Open 2023"]
[Site "Dimbroko"]
[Date "2023.03.31"]
[Round "9.3"]
[White "Cogan, Nicolas"]
[Black "Nean, Franck Anderson"]
[Result "1-0"]
[WhiteElo "2013"]
[BlackElo "1851"]
[Annotator "TA"]
[PlyCount "17"]
[EventDate "2023.03.25"]
[EventType "swiss"]
[EventCountry "IVO"]
[SourceTitle "playchess.com"]
[Source "ChessBase"]
[SourceQuality "1"]
[TimeControl "40/5400+30:1800+30"]

{[%evp 9,17,39,37,42,33,-1309,14,9,1399,658]} 1. d4 {[%emt 0:00:05][%cal Bd2d4,Bd4e5][%mdl 32]} e5 {[%emt 0:00:05]} 2. dxe5 {[%emt 0:00:05]} d6 {[%emt 0:00:13]} 3. Bf4 {[%emt 0:04:09]} Nc6 {[%emt 0:00:13]} 4. Nf3 {[%emt 0:00:38]} Bg4 {[%emt 0:00:42]} 5. c3 {[%emt 0:02:49]} Bxf3 $1 {[%emt 0:07:50][%mdl 64] Remove Defender} 6. exf3 {[%emt 0:00:15] Threatens to win with Qb3. A40: Unusual replies to 1 d4.} dxe5 {[%emt 0:00:26] [#]} 7. Qd4 $146 {[%emt 1:25:59][%mdl 8192]} ({Predecessor:} 7. Qxd8+ Rxd8 8. Be3 Nge7 9. Bc5 Nd5 {½-½ Filen,H-Tauriainen,M (2177) FIN Team Cup 2011 (1.1)}) 7... Qd6 $2 (7... Nxd4 $19 8. cxd4 Qxd4) 8. Qxd6 $11 {[%emt 0:00:00]} Rd8 $2 {[%mdl 8192] [#]} (8... cxd6 $11 9. Be3 d5) 9. Qxd8+ $3 {[%emt 0:00:00] Weighted Error Value: White=3.27/Black=2.20} 1-0

[Event "FIDE Zonal 4-2 Open 2023"]
[Site "Dimbroko"]
[Date "2023.03.31"]
[Round "9.4"]
[White "Kennedy Zinnah Kengo"]
[Black "Daniel Kolliemelen"]
[Result "0-1"]
[ECO "B50"]
[WhiteElo "1785"]
[BlackElo "1805"]
[Annotator "NA RC COMBH"]
[PlyCount "114"]
[EventDate "2023.03.25"]
[EventType "swiss"]
[EventCountry "IVO"]
[SourceTitle "playchess.com"]
[Source "ChessBase"]
[SourceQuality "1"]
[TimeControl "40/5400+30:1800+30"]

{[%evp 8,114,74,53,76,-46,32767,32767,-38,-67,32767,-68,-68,-77,-54,32767,-57,32767,-102,-114,32767,-99,32767,-60,-56,32767,32767,-131,32767,32767,-104,-884,-253,-354,-304,-350,-162,32767,-162,-622,-619,-621,-356,-620,-327,32767,32767,32767,32767,-476,-545,-586,-559,-564,-553,-622,-610,-713,-829,-702,-841,-900,-1023,-915,-1521,-983,-1232,-1024,-1133,-1173,-1034,-910,32767,32767,32767,32767,32767,32767,32767,32767,32767,32767,32767,32767,32767,32767,32767,32767,32767,32767,32767,32767,32767,32767,32767,32767,32767,32767,32767,32767,-29993,-29993,32767,32767,32767,-29994,32767,32767,-29996]} 1. e4 {[%emt 0:00:05]} e5 {[%emt 0:00:16]} 2. Nf3 {[%emt 0:00:12]} d6 {[%emt 0:00:31]} 3. Bc4 {[%emt 0:00:23]} c5 {[%emt 0:00:29]} 4. O-O {[%emt 0:00:27]} h6 {[%emt 0:00:08]} 5. Re1 {[%emt 0:00:39]} Nf6 {[%emt 0:00:54]} 6. Bd5 {[%emt 1:31:44]} (6. c3 $16) 6... Nxd5 {[%emt 1:31:12]} 7. exd5 {[%emt 0:00:00]} Be7 {[%emt 0:00:00]} 8. c4 {[%emt 0:00:00]} (8. b4 $11) 8... O-O {[%emt 0:00:00]} 9. Nc3 {[%emt 0:00:00]} Bg4 {[%emt 0:00:00]} 10. Qb3 {[%emt 0:00:00]} Bxf3 {[%emt 0:00:00]} 11. gxf3 {[%emt 0:00:00]} b6 {[%emt 0:00:00]} 12. Ne4 {[%emt 0:00:00]} f5 {[%emt 0:00:00]} 13. Ng3 {[%emt 0:03:30]} g5 {[%emt 0:03:30]} 14. d3 {[%emt 0:00:00]} (14. Qc2 $15) 14... Qe8 {[%emt 0:00:00]} 15. Bd2 {[%emt 0:00:00]} Qg6 {[%emt 0:00:00]} 16. Re2 {[%emt 0:00:00]} h5 {[%emt 0:00:00]} 17. Bc3 {[%emt 0:02:00]} h4 {[%emt 0:00:00]} 18. Nf1 {[%emt 0:00:30]} f4 {[%emt 0:02:30]} 19. Bxe5 $2 {[%emt 0:00:00]} dxe5 $2 {[%emt 0:00:00]} (19... g4 20. fxg4 Qxg4+ 21. Ng3 fxg3) 20. Rxe5 {[%emt 0:00:00]} Bf6 {[%emt 0:00:00]} 21. Re6 {[%emt 0:01:30]} Na6 {[%emt 0:01:30]} (21... g4 $142 22. Kh1 g3 23. fxg3 hxg3 24. hxg3 Qh6+ 25. Kg2 Nd7) 22. Rae1 {[%emt 0:00:00]} Rfe8 $2 {[%emt 0:00:00]} (22... g4 23. Kh1 gxf3) 23. Qb5 $2 {[%emt 0:00:00]} (23. h3 $17) 23... Rxe6 {[%emt 0:00:00]} 24. Rxe6 {[%emt 0:00:00]} Nb4 {[%emt 0:00:00]} 25. Qd7 $2 {[%emt 0:02:00]} (25. h3 Nc2 26. Qd7) 25... Qf7 {[%emt 0:02:00]} 26. Qxf7+ {[%emt 0:00:00]} Kxf7 {[%emt 0:00:00]} 27. a3 {[%emt 0:00:00]} Nxd3 {[%emt 0:00:00]} 28. Nd2 {[%emt 0:00:00]} Re8 {[%emt 0:00:00]} 29. Rxe8 {[%emt 0:00:00]} Kxe8 {[%emt 0:00:00]} 30. b3 {[%emt 0:00:00]} a5 {[%emt 0:00:00]} 31. Ne4 {[%emt 0:00:00]} Be7 {[%emt 0:00:00]} 32. d6 {[%emt 0:00:00]} Bd8 {[%emt 0:00:00]} 33. Kf1 {[%emt 0:00:00]} Kd7 {[%emt 0:00:00]} 34. Ke2 {[%emt 0:00:00]} Nc1+ {[%emt 0:00:00]} 35. Kd2 {[%emt 0:00:00]} Nxb3+ {[%emt 0:00:00]} 36. Kd3 {[%emt 0:00:00]} Nd4 {[%emt 0:00:00]} 37. Nd2 {[%emt 0:00:00]} Ke6 {[%emt 0:00:00]} 38. Ke4 {[%emt 0:00:00]} Nf5 {[%emt 0:00:00]} 39. d7 {[%emt 0:00:00]} Nd6+ {[%emt 0:00:00]} 40. Kd3 {[%emt 0:00:00]} Kxd7 {[%emt 0:07:30]} 41. Kc3 {[%emt 0:38:00]} a4 {[%emt 0:00:00]} 42. Kd3 {[%emt 0:00:00]} Ke6 {[%emt 0:00:00]} 43. Nb1 {[%emt 0:00:00]} Ke5 {[%emt 0:00:00]} 44. Nc3 {[%emt 0:00:00]} Nf5 {[%emt 0:00:00]} 45. Ne4 {[%emt 0:00:00]} h3 {[%emt 0:00:00]} 46. Nd2 {[%emt 0:00:00]} Nd4 {[%emt 0:00:00]} 47. Kc3 {[%emt 0:00:00]} Bc7 {[%emt 0:33:30]} 48. Kd3 {[%emt 0:00:00]} Kf5 {[%emt 0:00:00]} 49. Kc3 {[%emt 0:00:00]} Bb8 {[%emt 0:00:00]} 50. Kd3 {[%emt 0:00:00]} Be5 {[%emt 0:00:00]} 51. Nf1 {[%emt 0:00:00]} Nxf3 {[%emt 0:00:00]} 52. Ke2 {[%emt 0:00:00]} Ke4 {[%emt 0:00:00]} 53. Nd2+ {[%emt 0:00:00]} Nxd2 {[%emt 0:03:00]} 54. Kxd2 {[%emt 0:06:30]} g4 {[%emt 0:00:00]} 55. Ke2 {[%emt 0:00:00]} Kd4 {[%emt 0:00:00]} 56. f3 {[%emt 0:00:00]} g3 {[%emt 0:00:00]} 57. hxg3 {[%emt 0:00:00]} h2 {[%emt 0:00:00]} 0-1